bitfinex-derivatives/quotes_ETHF0:USTF0_20250209
["timestamp","ask_amount","ask_price","bid_price","bid_amount"]
[1739073644823,4.11715014,2675.1,2674.6,4.919]
[1739073646420,3.2078,2674.9,2674.6,4.919]
[1739073646626,3.2078,2674.9,2674.5,8.1268]
[1739073646825,3.90216093,2674.8,2674.5,8.1268]
[1739073647729,3.2078,2674.6,2674.2,4.919]
[1739073648124,3.94982077,2674.5,2674.2,4.919]
[1739073652526,3.94982077,2674.5,2673.9,10.9587]
[1739073652834,3.2078,2674.0,2673.2,7.03963487]
[1739073653025,3.2078,2674.0,2673.3,2.8998]
[1739073653226,4.04586012,2673.9,2673.3,4.3545]
[1739073654432,4.04586012,2673.9,2673.5,3.83183487]
[1739073654929,3.2078,2674.3,2673.5,3.83183487]
[1739073654930,4.08533949,2674.0,2673.5,3.83183487]
[1739073655230,4.28002448,2673.8,2673.5,3.83183487]
[1739073655426,4.08533949,2673.9,2673.3,4.3545]
[1739073655634,4.28002448,2673.7,2673.3,4.3545]
[1739073655827,4.08533949,2673.8,2673.3,4.3545]
[1739073656032,4.09094812,2673.8,2673.3,4.3545]
[1739073656227,3.9734684,2673.6,2673.3,4.3545]
[1739073656430,4.29249627,2673.7,2673.5,3.83183487]
[1739073656738,0.00560863,2673.8,2673.6,4.919]
[1739073656934,0.00560863,2673.8,2673.5,3.83183487]
[1739073657125,4.32177864,2673.7,2673.5,3.83183487]
[1739073657325,0.00560863,2673.8,2673.5,3.83183487]
[1739073657730,3.2078,2674.3,2673.6,3.2078]
[1739073658138,4.15506526,2674.2,2673.6,3.2078]
[1739073658728,4.15506526,2674.2,2673.5,3.83183487]
[1739073658928,4.16067389,2674.2,2673.6,0.00560863]
[1739073660627,4.16067389,2674.2,2673.7,3.2078]
[1739073661738,4.16067389,2674.2,2673.6,4.92460863]
[1739073662234,3.2078,2673.9,2673.6,4.92460863]
[1739073662629,4.13081214,2673.8,2673.6,0.00560863]
[1739073663034,5.46951214,2673.8,2673.6,0.00560863]
[1739073663336,6.56774487,2673.7,2672.4,3.2078]
[1739073663535,3.2078,2673.3,2672.6,2.8206]
[1739073664029,3.91482697,2673.2,2672.6,2.8206]
[1739073664236,3.91482697,2673.2,2672.6,6.0284]
[1739073664438,3.91482697,2673.2,2672.6,2.8206]
[1739073665034,3.91482697,2673.2,2672.6,6.0284]
[1739073665232,3.91482697,2673.2,2672.6,2.8206]
[1739073665637,3.91482697,2673.2,2672.7,3.2078]
[1739073665839,3.91482697,2673.2,2672.6,6.65243487]
[1739073666340,3.2078,2673.0,2672.6,2.8206]
[1739073666548,3.2078,2673.0,2672.5,3.2078]
[1739073666743,4.01889622,2672.9,2672.5,3.2078]
[1739073669239,5.38349622,2672.9,2672.5,3.2078]
[1739073669841,4.01889622,2672.9,2672.5,3.2078]
[1739073674039,4.01889622,2672.9,2672.4,8.76274371]
[1739073674345,4.01889622,2672.9,2672.4,3.84374371]
[1739073674746,4.01889622,2672.9,2672.3,1.4201]
[1739073674943,2.8801,2672.8,2672.3,1.4201]
[1739073675457,3.93122054,2672.7,2672.3,1.4201]
[1739073676955,3.2078,2672.6,2672.0,0.00762132]
[1739073677461,4.07027409,2672.5,2672.0,0.00762132]
[1739073677955,3.2078,2672.1,2672.0,0.00762132]
[1739073678459,6.79759441,2672.1,2672.0,0.00762132]
[1739073684368,3.58979441,2672.1,2672.0,0.00762132]
[1739073684865,3.95605,2672.5,2672.0,0.00762132]
[1739073684866,3.2078,2672.2,2672.0,0.00762132]
[1739073685063,4.8724,2672.1,2672.0,0.00762132]
[1739073685263,8.89256377,2672.1,2672.0,0.00762132]
[1739073686569,9.64091377,2672.1,2672.0,0.00762132]
[1739073686864,0.74851,2671.6,2671.0,4.6582]
[1739073687070,1.87096,2672.0,2670.7,6.0892]
[1739073687071,3.2078,2671.4,2670.7,6.0892]
[1739073687267,5.1938,2671.4,2670.7,6.0892]
[1739073687566,5.1938,2671.4,2670.0,6.201]
[1739073687567,3.2078,2671.1,2670.2,3.2078]
[1739073687870,3.2078,2670.8,2670.2,2.8814]
[1739073688263,0.74883,2670.5,2670.2,2.8814]
[1739073688457,3.2078,2670.6,2669.7,3.84374371]
[1739073688765,4.13420378,2670.4,2670.0,3.84374371]
[1739073688966,0.39941267,2670.5,2670.0,3.84374371]
[1739073689162,4.13420378,2670.6,2670.3,3.84374371]
[1739073689367,1.986,2671.0,2670.5,3.2078]
[1739073689566,0.40023197,2670.8,2670.5,3.2078]
[1739073689767,4.18076264,2670.9,2670.6,3.84374371]
[1739073690068,4.18076264,2671.1,2670.4,4.2619]
[1739073690274,3.2078,2670.9,2670.4,4.2619]
[1739073690569,4.24082992,2670.8,2670.0,3.84374371]
[1739073690770,3.2078,2670.6,2669.9,3.2078]
[1739073691072,4.24082992,2670.5,2669.9,3.2078]
[1739073691368,4.24082992,2670.5,2669.8,2.7996]
[1739073691369,3.2078,2670.3,2669.8,2.7996]
[1739073691569,4.24082992,2670.5,2669.8,2.7996]
[1739073691872,3.61686101,2670.2,2669.8,2.7996]
[1739073692063,4.21966096,2670.4,2669.8,2.7996]
[1739073692265,4.13248714,2670.1,2669.8,2.7996]
[1739073692666,3.2078,2670.6,2669.8,2.7996]
[1739073692667,0.74881,2670.5,2669.8,2.7996]
[1739073692869,4.13248714,2670.0,2669.4,3.84374371]
[1739073693167,3.2078,2670.0,2669.4,3.2078]
[1739073693369,3.2078,2670.0,2669.1,6.62454371]
[1739073693574,4.1308119,2669.9,2669.1,6.62454371]
[1739073694268,4.1308119,2669.9,2669.4,3.2078]
[1739073694463,4.1308119,2669.9,2669.5,1.4267]
[1739073695673,4.1308119,2669.9,2669.7,3.2078]
[1739073695866,4.1308119,2669.9,2669.8,2.781]
[1739073696069,0.00560863,2670.0,2669.8,2.781]
[1739073696569,0.00560863,2670.0,2669.9,2.69559747]
[1739073697376,3.2078,2670.6,2669.9,8.69559747]
[1739073697572,3.2078,2670.6,2670.2,2.69559747]
[1739073697778,4.32304437,2670.5,2670.2,2.69559747]
[1739073697976,3.2078,2670.9,2670.2,4.06399747]
[1739073698473,4.03057743,2670.8,2670.4,3.2078]
[1739073698682,0.00560863,2670.8,2670.5,4.06099747]
[1739073699173,3.2078,2671.3,2670.7,3.2078]
[1739073699369,7.9337,2671.7,2670.9,2.69559747]
[1739073699870,4.25923737,2671.6,2671.3,3.2078]
[1739073700169,7.25595371,2672.0,2671.3,3.2078]
[1739073700376,0.00560863,2671.7,2671.2,2.69559747]
[1739073700773,0.00560863,2671.7,2671.0,3.2078]
[1739073700774,4.04815371,2671.6,2671.0,3.2078]
[1739073701778,4.04815371,2671.6,2670.8,6.2874]
[1739073701779,7.25595371,2671.6,2670.8,6.2874]
[1739073701966,8.69685371,2671.6,2670.8,1.3684]
[1739073702172,3.2078,2671.3,2670.8,1.3684]
[1739073702371,3.2078,2671.3,2670.5,1.3654]
[1739073702572,4.33480719,2671.2,2670.5,1.3654]
[1739073702974,3.2078,2671.0,2670.3,0.00560863]
[1739073703277,1.4274,2670.9,2670.3,0.00560863]
[1739073703577,1.3448,2670.8,2670.3,0.00560863]
[1739073703975,4.2883677,2670.7,2670.3,0.00560863]
[1739073704677,4.2883677,2670.7,2670.3,5.9090061]
[1739073704972,3.2078,2671.0,2670.3,5.9090061]
[1739073705177,3.04909526,2670.8,2670.3,5.9090061]
[1739073705371,4.20837168,2670.9,2670.3,5.9090061]
[1739073705574,3.04909526,2670.7,2670.3,5.9090061]
[1739073706276,0.16003008,2670.9,2670.3,5.9090061]
[1739073706576,4.22878522,2670.7,2670.3,5.9090061]
[1739073706972,3.2078,2671.0,2670.3,5.9090061]
[1739073707170,3.2078,2671.3,2670.3,5.9090061]
[1739073707477,4.00904124,2670.9,2670.6,3.2078]
[1739073707677,4.00904124,2671.2,2670.7,1.3914]
[1739073707879,1.4274,2671.5,2670.7,1.3914]
[1739073708072,1.4274,2671.5,2670.8,2.8836]
[1739073708270,4.01717327,2671.3,2670.8,2.8836]
[1739073708476,4.01717327,2671.4,2670.8,2.8836]
[1739073708675,1.4274,2671.5,2670.8,2.8836]
[1739073708979,4.01717327,2671.4,2670.8,2.8836]
[1739073709179,4.01717327,2671.4,2670.9,3.2078]
[1739073709681,4.01717327,2671.4,2670.9,5.90339747]
[1739073709881,3.2078,2671.6,2670.9,5.90339747]
[1739073711579,0.00560863,2671.7,2671.2,5.90339747]
[1739073712481,0.00560863,2671.7,2671.5,2.69559747]
[1739073712688,0.00560863,2671.7,2671.2,5.90339747]
[1739073713074,4.12878331,2671.6,2671.2,5.90339747]
[1739073714085,4.12878331,2671.6,2671.2,3.2078]
[1739073714581,4.12878331,2671.6,2671.0,4.919]
[1739073714789,4.12878331,2671.6,2671.3,3.2078]
[1739073716082,4.12878331,2671.6,2671.0,3.2078]
[1739073716287,4.12878331,2671.6,2670.8,2.8836]
[1739073716288,3.2078,2671.5,2670.8,2.8836]
[1739073716477,3.2078,2671.5,2670.7,3.2078]
[1739073716683,5.01419065,2671.4,2670.7,3.2078]
[1739073716991,1.3506,2671.3,2670.7,3.2078]
[1739073717486,4.14678478,2671.2,2670.7,3.2078]
[1739073718488,4.14678478,2671.2,2671.1,0.0062258]
[1739073722292,7.35458478,2671.2,2671.1,0.0062258]
[1739073723282,4.14678478,2671.2,2671.1,0.0062258]
[1739073723690,4.14678478,2671.2,2671.1,6.0062258]
[1739073723888,0.00560863,2671.7,2671.1,6.0062258]
[1739073724091,0.00560863,2671.7,2671.3,5.90339747]
[1739073724286,4.15580475,2671.6,2671.3,5.90339747]
[1739073724490,0.00560863,2671.7,2671.3,5.90339747]
[1739073724783,0.00560863,2671.7,2671.6,2.69559747]
[1739073726789,0.00560863,2671.7,2671.6,5.90339747]
[1739073726985,0.00560863,2671.7,2671.6,11.90339747]
[1739073727193,4.6341,2672.6,2671.6,11.90339747]
[1739073727396,4.6341,2672.6,2671.6,7.88639747]
[1739073727590,4.33275555,2672.5,2671.6,7.88639747]
[1739073727789,4.33275555,2672.5,2671.9,2.69559747]
[1739073728296,4.33836418,2672.5,2671.9,5.9090061]
[1739073728598,4.33836418,2672.5,2672.2,5.90339747]
[1739073731403,3.2078,2672.3,2672.0,1.3559]
[1739073731606,3.2078,2672.3,2671.9,3.21340863]
[1739073731795,4.07516627,2672.2,2671.9,2.7012061]
[1739073732794,4.24811988,2672.3,2671.9,2.7012061]
[1739073733989,4.24811988,2672.3,2672.1,3.2078]
[1739073734400,4.24811988,2672.3,2671.9,0.00560863]
[1739073734701,7.45591988,2672.3,2671.9,0.00560863]
[1739073736501,3.2078,2672.0,2671.9,0.00560863]
[1739073737097,7.38539445,2672.0,2671.1,3.2140258]
[1739073737307,3.2078,2671.7,2671.1,3.2140258]
[1739073737595,1.4115,2671.9,2671.1,0.0062258]
[1739073737596,3.2078,2671.3,2671.1,0.0062258]
[1739073738002,7.48689577,2671.8,2671.1,0.0062258]
[1739073738205,3.2078,2671.8,2671.1,3.2140258]
[1739073738598,4.0450839,2671.7,2671.1,0.0062258]
[1739073738796,4.0450839,2671.7,2671.1,3.2140258]
[1739073739299,3.2078,2671.5,2671.1,0.0062258]
[1739073739794,3.99205606,2671.4,2671.1,0.0062258]
[1739073740299,3.99205606,2671.6,2671.1,0.0062258]
[1739073740504,1.3536,2671.7,2671.1,0.0062258]
[1739073740700,4.18363603,2671.5,2671.1,0.0062258]
[1739073741001,4.18363603,2671.6,2671.3,2.69559747]
[1739073741301,4.669,2672.8,2671.6,0.74847]
[1739073741497,4.669,2672.8,2672.2,5.90339747]
[1739073741698,3.2078,2672.3,2671.6,5.90339747]
[1739073742101,4.00982936,2672.2,2671.6,5.90339747]
[1739073742298,1.4612,2672.1,2671.6,5.90339747]
[1739073742701,4.08701668,2672.0,2671.6,5.90339747]
[1739073742903,4.08701668,2672.0,2671.9,3.2078]
[1739073743599,4.08701668,2672.0,2671.6,5.90339747]
[1739073744394,4.05050632,2672.2,2671.4,2.8822]
[1739073744599,3.2078,2672.3,2671.4,2.8822]
[1739073744799,4.06448508,2672.2,2671.4,2.8822]
[1739073745003,3.2078,2671.9,2671.2,3.2078]
[1739073745406,5.4591816,2671.8,2671.2,3.2078]
[1739073745605,1.4742,2671.7,2671.2,3.2078]
[1739073746108,4.0217816,2671.6,2671.2,3.2078]
[1739073746615,7.2295816,2671.6,2671.2,3.2078]
[1739073747701,7.2295816,2671.6,2671.1,0.0062258]
[1739073748300,4.0217816,2671.6,2671.2,3.2078]
[1739073749108,4.0217816,2671.6,2671.1,0.0062258]
[1739073749405,4.0217816,2671.6,2671.1,3.2140258]
[1739073749807,4.0217816,2671.6,2671.1,0.0062258]
[1739073750005,7.2295816,2671.6,2671.1,0.0062258]
[1739073751200,7.2295816,2671.6,2671.2,5.90143457]
[1739073751504,4.0217816,2671.6,2671.2,5.90143457]
[1739073751909,4.0217816,2671.6,2671.2,2.69363457]
[1739073752105,4.0217816,2671.6,2671.2,5.90143457]
[1739073753803,4.0217816,2671.6,2671.2,2.6930395]
[1739073754111,4.0217816,2671.6,2671.2,5.9008395]
[1739073755001,3.2078,2672.1,2671.5,2.6930395]
[1739073755206,3.2078,2672.1,2671.9,2.6930395]
[1739073755410,3.72456706,2672.0,2671.9,2.6930395]
[1739073757000,6.1577,2672.4,2671.9,2.6930395]
[1739073757199,3.2078,2672.4,2672.2,2.6930395]
[1739073757803,0.00560863,2672.5,2672.2,2.6930395]
[1739073758204,0.00560863,2672.5,2672.2,5.9008395]
[1739073758404,0.00560863,2672.5,2672.3,2.8405]
[1739073761306,0.00560863,2672.5,2672.2,5.9008395]
[1739073761514,4.00585952,2672.4,2672.2,5.9008395]
[1739073761708,4.00585952,2672.4,2672.2,2.6930395]
[1739073761906,5.45195952,2672.4,2672.2,2.6930395]
[1739073763115,6.94455952,2672.4,2672.2,2.6930395]
[1739073763612,6.94455952,2672.4,2671.9,2.6930395]
[1739073763809,8.28945952,2672.4,2671.9,2.6930395]
[1739073765313,11.49725952,2672.4,2671.9,2.6930395]
[1739073765511,3.2078,2672.1,2671.6,2.6930395]
[1739073765812,3.2078,2672.1,2671.6,5.9008395]
[1739073766011,4.30627686,2672.0,2671.6,5.9008395]
[1739073766512,4.30627686,2672.0,2671.6,2.6930395]
[1739073774720,4.30627686,2672.0,2671.3,7.3077395]
[1739073776124,4.30627686,2672.0,2671.3,5.9008395]
[1739073776628,4.30627686,2672.0,2671.3,3.2078]
[1739073777822,4.30627686,2672.0,2671.5,2.31453359]
[1739073778614,4.30627686,2672.0,2671.3,3.2078]
[1739073778921,4.30627686,2672.0,2671.5,2.69317711]
[1739073780611,2.9387,2672.4,2671.8,2.69317711]
[1739073780817,2.9387,2672.4,2671.9,1.3718]
[1739073781018,4.26426839,2672.3,2671.8,2.69317711]
[1739073781319,4.26426839,2672.3,2671.6,3.2078]
[1739073781523,4.6022,2672.2,2671.6,3.2078]
[1739073781924,3.94914292,2672.1,2671.6,3.2078]
[1739073782126,3.94914292,2672.1,2671.8,2.69317711]
[1739073784115,3.94914292,2672.1,2671.9,1.3684]
[1739073784521,2.9387,2672.4,2671.9,1.3684]
[1739073784720,2.9387,2672.4,2672.1,2.69317711]
[1739073784923,4.3314113,2672.3,2672.1,2.69317711]
[1739073787416,0.00560863,2672.5,2672.2,3.2078]
[1739073787618,0.00560863,2672.5,2672.4,2.69317711]
[1739073788423,0.00560863,2672.5,2672.4,3.44144711]
[1739073788726,0.00560863,2672.5,2672.4,2.69317711]
[1739073789120,3.2078,2673.3,2672.4,3.44144711]
[1739073789316,3.2078,2673.3,2673.0,2.69317711]
[1739073789528,4.10778309,2673.2,2673.0,2.69317711]
[1739073790431,4.10778309,2673.3,2673.0,2.69317711]
[1739073790629,4.10778309,2673.3,2672.8,0.00560863]
[1739073790826,3.2078,2673.3,2672.8,0.00560863]
[1739073791028,7.25415663,2673.3,2672.8,0.00560863]
[1739073793225,1.47,2673.2,2672.8,0.00560863]
[1739073793424,3.2078,2673.0,2672.8,0.00560863]
[1739073793620,3.2078,2673.0,2671.8,2.69317711]
[1739073793824,3.2078,2672.2,2671.8,2.69317711]
[1739073794334,4.3294527,2672.1,2671.8,2.69317711]
[1739073794528,3.2078,2672.5,2671.8,2.69317711]
[1739073794833,3.9900596,2672.4,2672.1,2.69317711]
[1739073795326,3.9900596,2672.4,2671.9,0.00560863]
[1739073795628,3.2078,2672.2,2671.9,0.00560863]
[1739073795930,1.3553,2672.1,2671.9,0.00560863]
[1739073796231,6.89372892,2672.1,2671.9,0.00560863]
[1739073796829,8.31612892,2672.1,2671.9,0.00560863]
[1739073798234,8.31612892,2672.1,2671.0,8.87305681]
[1739073798441,3.2078,2671.8,2671.0,8.87305681]
[1739073798734,3.2078,2671.8,2671.3,4.23105681]
[1739073798935,4.27622103,2671.7,2671.3,4.23105681]
[1739073799235,7.4072,2672.1,2671.3,4.23105681]
[1739073799433,0.00560863,2671.8,2671.3,4.23105681]
[1739073799933,4.0054475,2671.7,2671.3,4.23105681]
[1739073800733,4.0054475,2671.7,2671.3,7.43885681]
[1739073801234,0.00560863,2671.8,2671.6,7.43885681]
[1739073801540,0.00560863,2671.8,2671.7,1.4835]
[1739073801737,0.00560863,2671.8,2671.7,2.9517]
[1739073802428,4.09468554,2671.8,2671.3,7.43885681]
[1739073802940,4.09468554,2671.8,2671.3,4.23105681]
[1739073803533,4.09468554,2671.8,2671.2,0.00560863]
[1739073803836,7.30248554,2671.8,2671.2,0.00560863]
[1739073804140,1.4116,2671.7,2671.2,0.00560863]
[1739073804633,3.95673914,2671.6,2671.2,0.00560863]
[1739073804834,1.4288,2671.5,2671.2,0.00560863]
[1739073805033,2.8132,2671.5,2671.2,0.00560863]
[1739073805234,4.26793122,2671.4,2671.2,0.00560863]
[1739073810638,0.74858,2671.3,2671.2,0.00560863]
[1739073810838,0.74865,2671.1,2670.4,3.2078]
[1739073811044,3.2078,2670.8,2670.3,3.63783164]
[1739073811239,2.8687,2670.7,2670.3,3.63783164]
[1739073811442,6.87215947,2670.7,2670.1,3.2078]
[1739073812338,6.87215947,2670.7,2670.0,5.11803164]
[1739073812639,3.2078,2670.5,2670.0,5.11803164]
[1739073813147,4.19559872,2670.4,2670.0,5.11803164]
[1739073816045,2.8687,2670.7,2670.3,3.63783164]
[1739073816441,4.00753858,2670.4,2670.3,3.63783164]
[1739073816643,4.00753858,2670.6,2670.3,3.63783164]
[1739073816847,2.8687,2670.7,2670.3,3.63783164]
[1739073817152,3.99394401,2670.5,2670.3,3.63783164]
[1739073817342,3.67805829,2670.6,2670.3,3.63783164]
[1739073817548,4.20419979,2670.4,2670.3,3.63783164]
[1739073818056,2.8687,2670.7,2670.3,3.63783164]
[1739073818248,4.20419979,2670.4,2670.3,3.63783164]
[1739073818445,4.20419979,2670.5,2670.3,3.63783164]
[1739073818750,4.06346897,2670.4,2670.3,3.63783164]
[1739073818941,2.8687,2670.7,2670.3,3.63783164]
[1739073819144,4.31229371,2670.5,2670.3,3.63783164]
[1739073819344,4.06346897,2670.4,2670.3,3.63783164]
[1739073819546,2.8687,2670.7,2670.3,3.63783164]
[1739073819745,4.19513137,2670.5,2670.3,3.63783164]
[1739073819942,4.06346897,2670.4,2670.3,3.63783164]
[1739073820145,2.8687,2670.7,2670.3,3.63783164]
[1739073820345,4.06346897,2670.4,2670.3,3.63783164]
[1739073820742,2.8687,2670.7,2670.3,3.63783164]
[1739073821055,4.28673215,2670.6,2670.3,3.63783164]
[1739073822449,4.28673215,2670.6,2670.3,9.83883164]
[1739073822652,4.28673215,2670.6,2670.3,3.63783164]
[1739073828145,3.2078,2670.5,2669.7,5.00723164]
[1739073828345,3.2078,2670.2,2669.7,5.00723164]
[1739073828748,4.33395969,2670.1,2669.7,5.00723164]
[1739073829055,5.70805969,2670.1,2669.7,5.00723164]
[1739073829351,7.10525969,2670.1,2669.7,5.00723164]
[1739073829547,7.10525969,2670.1,2669.7,3.63783164]
[1739073831257,7.10525969,2670.1,2669.4,5.07323164]
[1739073831849,3.2078,2669.9,2669.4,5.07323164]
[1739073832453,4.04278263,2669.8,2669.4,5.07323164]
[1739073832655,4.04278263,2669.8,2669.7,3.63783164]
[1739073832850,0.00560863,2670.4,2669.7,13.27566328]
[1739073833052,0.00560863,2670.4,2670.3,3.63783164]
[1739073833552,4.24261866,2670.4,2670.3,3.63783164]
[1739073840962,3.2078,2670.9,2670.3,3.63783164]
[1739073841169,1.4108,2671.4,2670.8,3.2078]
[1739073841363,1.4108,2671.4,2671.1,3.63783164]
[1739073841561,3.32231944,2671.3,2671.1,3.63783164]
[1739073841863,3.2078,2671.7,2671.1,6.84563164]
[1739073842065,4.26125002,2671.6,2671.4,3.63783164]
[1739073842461,3.21340863,2671.7,2671.4,3.63783164]
[1739073842766,4.14988344,2671.6,2671.5,2.8062]
[1739073843162,4.14988344,2671.6,2671.5,1.4064]
[1739073845671,4.14988344,2671.6,2671.4,3.63783164]
[1739073849170,4.14988344,2671.6,2671.3,3.63675405]
[1739073851571,0.00560863,2671.7,2671.3,3.63675405]
[1739073851773,0.00560863,2671.7,2671.6,3.63675405]
[1739073852766,0.00560863,2671.7,2671.3,3.63675405]
[1739073852767,3.94166916,2671.7,2671.3,3.63675405]
[1739073853368,3.94166916,2671.7,2671.4,3.63676619]
[1739073854467,7.14946916,2671.7,2671.4,3.63676619]
[1739073854973,3.94166916,2671.7,2671.4,6.84456619]
[1739073855270,0.00560863,2671.7,2671.4,6.84456619]
[1739073857474,4.21386619,2671.6,2671.4,6.84456619]
[1739073857677,4.21386619,2671.6,2671.4,3.63676619]
[1739073862079,5.56966619,2671.6,2671.4,3.63676619]
[1739073862380,6.95206619,2671.6,2671.4,3.63676619]
[1739073863176,10.15986619,2671.6,2671.2,2.803]
[1739073863673,3.2078,2671.3,2671.1,0.00560863]
[1739073864075,4.31997652,2671.2,2671.1,0.00560863]
[1739073864379,5.06858652,2671.2,2671.1,0.00560863]
[1739073864780,5.06858652,2671.2,2670.2,3.63676619]
[1739073864781,0.74869,2670.9,2670.2,3.63676619]
[1739073864980,6.0481,2670.8,2670.2,3.63676619]
[1739073865184,10.22435043,2670.8,2670.2,3.63676619]
[1739073865585,10.22435043,2670.8,2669.9,6.84456619]
[1739073865586,0.74876,2670.7,2669.9,6.84456619]
[1739073865880,3.2078,2670.5,2669.9,3.63676619]
[1739073866278,3.95559125,2670.4,2669.9,3.63676619]
[1739073866473,3.95559125,2670.4,2669.6,6.84456619]
[1739073866977,0.00560863,2670.3,2669.6,6.84456619]
[1739073867380,3.95039017,2670.2,2669.6,6.84456619]
[1739073867577,1.4209,2670.1,2669.6,6.84456619]
[1739073867977,5.51325556,2670.0,2669.6,6.84456619]
[1739073869581,3.2078,2669.9,2669.6,3.63676619]
[1739073869981,4.32745948,2669.8,2669.6,3.63676619]
[1739073870681,4.3247273,2669.8,2669.6,3.63676619]
[1739073873377,4.3247273,2669.8,2669.6,9.63676619]
[1739073873585,0.00560863,2670.3,2669.7,7.82476619]
[1739073873887,0.00560863,2670.3,2670.1,3.63676619]
[1739073874279,0.00560863,2670.3,2670.2,3.2078]
[1739073874582,1.3637,2671.3,2670.2,3.2078]
[1739073874787,1.3637,2671.3,2670.8,3.63676619]
[1739073874980,5.35095643,2671.3,2670.8,3.63676619]
[1739073875184,1.4814,2671.2,2670.8,3.63676619]
[1739073875587,3.98725643,2671.1,2670.8,3.63676619]
[1739073876681,3.98725643,2671.1,2670.7,4.23890355]
[1739073877485,3.98725643,2671.1,2670.7,0.00560863]
[1739073878190,7.19505643,2671.1,2670.7,0.00560863]
[1739073878390,3.2078,2670.8,2670.7,0.00560863]
[1739073878885,7.25492839,2670.8,2670.7,0.00560863]
[1739073879091,0.7488,2670.5,2669.6,2.728]
[1739073879389,3.2078,2670.2,2669.6,2.728]
[1739073879887,3.2078,2669.9,2669.3,3.2078]
[1739073880083,1.4747,2669.8,2669.3,3.2078]
[1739073880284,1.83482409,2669.8,2669.3,3.2078]
[1739073888794,1.83482409,2669.8,2669.0,1.4466]
[1739073888795,3.2078,2669.6,2669.0,4.6544]
[1739073889296,4.22756344,2669.5,2669.0,4.6544]
[1739073889492,4.22756344,2669.5,2669.2,4.23329492]
[1739073889698,4.22756344,2669.7,2669.2,4.23329492]
[1739073889996,1.4747,2669.8,2669.2,4.23329492]
[1739073890199,4.06213175,2669.7,2669.2,4.23329492]
[1739073890597,0.00560863,2669.9,2669.3,3.2078]
[1739073890900,4.15981049,2669.6,2669.3,3.2078]
[1739073891100,1.48810863,2669.9,2669.3,3.2078]
[1739073891399,4.15981049,2669.7,2669.3,3.2078]
[1739073891599,4.15981049,2669.8,2669.3,3.2078]
[1739073891901,1.48810863,2669.9,2669.3,3.2078]
[1739073892101,3.96002114,2669.8,2669.3,3.2078]
[1739073893994,3.96002114,2669.8,2669.4,1.454]
[1739073895103,3.96002114,2669.8,2669.5,4.23329492]
[1739073895301,3.96002114,2669.8,2669.6,1.4109]
[1739073895902,3.2078,2670.3,2669.6,6.101]
[1739073896099,3.2078,2670.3,2670.0,4.23329492]
[1739073896304,4.29765449,2670.2,2670.1,1.4385]
[1739073896802,4.29765449,2670.2,2669.9,3.2078]
[1739073897003,4.29765449,2670.2,2669.8,0.00561924]
[1739073897193,2.8508,2670.1,2669.8,0.00561924]
[1739073897610,4.03547072,2670.0,2669.8,0.00561924]
[1739073899904,3.21341924,2670.3,2669.9,3.2078]
[1739073900104,3.21341924,2670.3,2670.0,3.64110501]
[1739073903407,0.00561924,2670.3,2670.0,3.64110501]
[1739073905707,0.00561924,2670.3,2669.9,3.2078]
[1739073905708,4.0677443,2670.2,2669.8,0.00561924]
[1739073905911,5.5210443,2670.2,2669.8,0.00561924]
[1739073906106,6.8998443,2670.2,2669.8,0.00561924]
[1739073906913,6.8998443,2670.2,2669.9,3.2078]
[1739073909308,10.1076443,2670.2,2669.8,0.00561924]
[1739073909710,11.5524443,2670.2,2669.8,0.00561924]
[1739073910713,3.2078,2669.9,2669.3,3.2078]
[1739073911107,4.07769996,2669.8,2669.3,3.2078]
[1739073911611,3.2078,2669.6,2669.1,5.05760501]
[1739073912018,4.15139901,2669.5,2669.1,5.05760501]
[1739073913414,4.15139901,2669.5,2669.4,3.64110501]
[1739073913612,1.4171,2670.0,2669.4,3.64110501]
[1739073914019,6.89544631,2670.0,2669.6,3.2078]
[1739073914212,5.47834631,2670.0,2669.7,3.64110501]
[1739073914415,5.47834631,2670.0,2669.7,1.4734]
[1739073914609,5.47834631,2670.0,2669.4,3.64110501]
[1739073914809,1.4171,2669.9,2669.4,3.64110501]
[1739073915016,5.47834631,2670.0,2669.4,5.04980501]
[1739073915221,1.4896,2670.0,2669.7,3.64110501]
[1739073915520,1.4896,2670.0,2669.8,1.4734]
[1739073915719,3.2078,2670.2,2669.8,1.4734]
[1739073915928,1.4411,2670.6,2670.0,6.84890501]
[1739073915929,1.4152,2670.5,2670.0,6.84890501]
[1739073916123,4.28295875,2670.1,2670.0,6.84890501]
[1739073916317,4.28295875,2670.2,2670.0,6.84890501]
[1739073916519,1.4152,2670.5,2670.1,3.2078]
[1739073917028,5.1678,2671.1,2670.1,4.6058]
[1739073917225,6.1259,2671.1,2670.1,12.5658]
[1739073917420,6.1259,2671.1,2670.6,3.64110501]
[1739073917625,4.26347246,2671.0,2670.6,3.64110501]
[1739073918618,4.26347246,2671.0,2670.9,3.64110501]
[1739073919923,4.26347246,2671.0,2670.6,5.05140501]
[1739073920123,1.4453,2670.9,2670.6,5.05140501]
[1739073921431,3.9920196,2670.8,2670.6,3.64110501]
[1739073921630,3.9920196,2670.8,2670.5,0.00561924]
[1739073922328,0.74905,2669.7,2668.4,1.30357088]
[1739073922519,3.2078,2668.5,2668.3,6.19774332]
[1739073922921,0.2674155,2668.4,2668.3,6.19774332]
[1739073925624,0.2674155,2668.4,2667.2,1.959]
[1739073925822,0.2674155,2668.4,2668.2,3.2078]
[1739073926023,3.2078,2668.3,2668.2,3.2078]
[1739073926533,7.36143682,2668.3,2668.2,3.2078]
[1739073927634,11.60533818,2668.3,2668.2,3.2078]
[1739073929236,11.60533818,2668.3,2666.8,1.4863]
[1739073929237,11.60533818,2668.3,2666.8,8.93800136]
[1739073929440,3.2078,2667.5,2666.8,1.4863]
[1739073929741,3.2078,2667.5,2666.8,1.78661541]
[1739073929934,4.1928318,2667.4,2666.8,1.78661541]
[1739073930439,4.1928318,2667.4,2667.3,3.2078]
[1739073935437,7.4006318,2667.4,2667.3,3.2078]
[1739073944937,3.2078,2667.4,2667.3,3.2078]
[1739073946345,7.28392213,2667.4,2667.3,3.2078]
[1739073946747,10.93348708,2667.4,2667.3,3.2078]
[1739073949243,11.68315708,2667.4,2667.3,3.2078]
[1739073949448,10.93348708,2667.4,2667.3,3.2078]
[1739073950151,10.93348708,2667.4,2666.8,1.4863]
[1739073950455,6.85736495,2666.9,2666.8,1.4863]
[1739073951051,6.85736495,2666.9,2666.8,4.6941]
[1739073952043,0.00561924,2667.1,2666.8,4.6941]
[1739073952256,1.97533976,2667.1,2667.0,3.2078]
[1739073957756,5.96487253,2667.1,2667.0,3.2078]
[1739073958661,1.97533976,2667.1,2667.0,3.2078]